bitfinex-derivatives/quotes_BTCF0:USTF0_20250602
["timestamp","ask_amount","ask_price","bid_price","bid_amount"]
[1748861046855,1.35373127,104500.0,104490.0,0.01569371]
[1748861047246,1.35973127,104500.0,104490.0,0.01469371]
[1748861047759,1.36861382,104500.0,104490.0,0.01469371]
[1748861049151,1.35973127,104500.0,104490.0,0.01469371]
[1748861049363,1.21321856,104500.0,104490.0,0.01469371]
[1748861051645,1.11751856,104500.0,104490.0,0.01469371]
[1748861053050,0.90905543,104500.0,104490.0,0.01469371]
[1748861053445,1.05571196,104500.0,104490.0,0.01469371]
[1748861053649,0.1913356,104480.0,104470.0,0.01119584]
[1748861053866,1.20816498,104480.0,104470.0,0.01081835]
[1748861054063,1.31456498,104480.0,104470.0,0.55184838]
[1748861054361,1.41456498,104480.0,104470.0,0.00192838]
[1748861054557,1.41456498,104480.0,104470.0,0.55200838]
[1748861054558,1.26599213,104480.0,104470.0,0.55200838]
[1748861054860,1.26899213,104480.0,104470.0,0.10824838]
[1748861055060,1.26899213,104480.0,104470.0,0.44772838]
[1748861055260,1.26899213,104480.0,104470.0,0.00292838]
[1748861055468,1.31899213,104480.0,104470.0,0.00292838]
[1748861055661,1.31899213,104480.0,104470.0,0.00172838]
[1748861055858,0.1913537,104470.0,104460.0,0.00014371]
[1748861056065,1.09076728,104470.0,104460.0,0.01449371]
[1748861056363,1.09076728,104470.0,104460.0,0.01469371]
[1748861056875,1.0924195,104470.0,104460.0,0.01469371]
[1748861057062,0.94411075,104470.0,104460.0,0.01449371]
[1748861057360,1.03983475,104470.0,104460.0,0.01469371]
[1748861057565,0.94411075,104470.0,104460.0,0.01449371]
[1748861057764,1.09076728,104470.0,104460.0,0.01469371]
[1748861057953,1.09076728,104470.0,104440.0,0.22851207]
[1748861057954,0.1913905,104450.0,104440.0,0.22851207]
[1748861058154,1.05964703,104450.0,104440.0,0.77863207]
[1748861058468,1.12894703,104450.0,104440.0,0.74383207]
[1748861059058,1.12894703,104450.0,104440.0,0.74379207]
[1748861059565,0.9822905,104450.0,104440.0,0.74479207]
[1748861059865,1.12894703,104450.0,104440.0,0.82472152]
[1748861060267,1.12894703,104450.0,104440.0,0.83908152]
[1748861061355,1.12894703,104450.0,104440.0,0.39432152]
[1748861061570,1.12894703,104450.0,104440.0,0.83912152]
[1748861062560,1.12894703,104450.0,104440.0,0.28900152]
[1748861062859,1.12894703,104450.0,104440.0,0.83908152]
[1748861064263,1.12894703,104450.0,104440.0,0.83912152]
[1748861064561,1.12894703,104450.0,104440.0,0.83019207]
[1748861065962,1.12894703,104450.0,104440.0,0.56874647]
[1748861066465,1.12894703,104450.0,104440.0,0.76015527]
[1748861067666,1.13194703,104450.0,104440.0,0.76015527]
[1748861067963,1.13194703,104450.0,104440.0,0.75915527]
[1748861068168,1.13394703,104450.0,104440.0,0.75915527]
[1748861069268,1.13394703,104450.0,104440.0,0.56774647]
[1748861069763,1.13394703,104450.0,104440.0,0.56778647]
[1748861069958,1.23394703,104450.0,104440.0,0.01766647]
[1748861070160,1.23394703,104450.0,104440.0,0.01746647]
[1748861070364,1.23394703,104450.0,104440.0,0.01766647]
[1748861071375,0.1914271,104430.0,104420.0,0.51732]
[1748861071573,1.20634016,104430.0,104420.0,0.7087655]
[1748861071766,1.27644016,104430.0,104420.0,0.51756]
[1748861071962,1.12978363,104430.0,104420.0,0.7090055]
[1748861072367,0.9831271,104430.0,104420.0,0.7090055]
[1748861072574,1.12978363,104430.0,104420.0,0.7090055]
[1748861072767,1.12978363,104430.0,104420.0,0.7467055]
[1748861073168,1.12978363,104430.0,104420.0,0.7477055]
[1748861073872,1.12978363,104430.0,104420.0,0.75672078]
[1748861074974,1.27801942,104430.0,104420.0,0.75672078]
[1748861078083,1.12978363,104430.0,104420.0,0.75672078]
[1748861078778,1.27801942,104430.0,104420.0,0.75672078]
[1748861080272,1.12978363,104430.0,104420.0,0.75672078]
[1748861088304,1.16578363,104430.0,104420.0,0.75672078]
[1748861088504,1.31244016,104430.0,104420.0,0.1936455]
[1748861088697,1.41244016,104430.0,104420.0,0.0022]
[1748861089002,1.52090329,104430.0,104420.0,0.0012795]
[1748861089192,1.62090329,104430.0,104420.0,0.0012795]
[1748861089391,1.62090329,104430.0,104420.0,0.0014795]
[1748861089798,1.62090329,104430.0,104420.0,0.0004795]
[1748861089996,1.41544016,104430.0,104420.0,0.0014795]
[1748861091302,1.41844016,104430.0,104420.0,0.0012]
[1748861091998,1.56695329,104430.0,104420.0,0.0012]
[1748861093800,1.41844016,104430.0,104420.0,0.0012]
[1748861094101,1.41844016,104430.0,104420.0,0.001]
[1748861094700,1.41844016,104430.0,104420.0,0.0012]
[1748861094901,1.41844016,104430.0,104420.0,0.001]
[1748861095291,1.41844016,104430.0,104420.0,0.0012]
[1748861095500,1.62690329,104430.0,104420.0,0.0012]
[1748861096398,1.23359023,104430.0,104420.0,0.0012]
[1748861096702,1.38024676,104430.0,104420.0,0.0012]
[1748861097008,1.52690329,104430.0,104420.0,0.0012]
[1748861098713,1.62690329,104430.0,104420.0,0.0012]
[1748861100802,0.2914455,104420.0,104410.0,0.55178708]
[1748861101004,0.90160203,104420.0,104410.0,0.55178708]
[1748861101210,1.05028296,104420.0,104410.0,0.55178708]
[1748861101396,1.05028296,104420.0,104410.0,0.00230708]
[1748861101596,1.05028296,104420.0,104410.0,0.44662708]
[1748861101801,1.11006516,104420.0,104410.0,0.00230708]
[1748861102100,0.1914638,104410.0,104400.0,0.58588]
[1748861102307,0.951628,104410.0,104400.0,0.54892502]
[1748861102807,0.1914821,104400.0,104390.0,1.54632431]
[1748861103001,0.76803863,104400.0,104390.0,2.09600431]
[1748861103202,0.6213821,104400.0,104390.0,2.09600431]
[1748861103408,0.76803863,104400.0,104390.0,2.09600431]
[1748861104012,0.84393875,104400.0,104390.0,2.09600431]
[1748861105106,0.84493875,104400.0,104390.0,2.05208961]
[1748861105301,0.84493875,104400.0,104390.0,2.00421491]
[1748861105495,0.84493875,104400.0,104390.0,1.41957491]
[1748861105711,0.84493875,104400.0,104390.0,1.96941491]
[1748861106204,0.84493875,104400.0,104390.0,1.96921491]
[1748861106406,0.84493875,104400.0,104390.0,1.96941491]
[1748861107201,0.84493875,104400.0,104390.0,1.92154061]
[1748861107404,0.84493875,104400.0,104390.0,1.47706061]
[1748861107713,0.84793875,104400.0,104390.0,1.91954061]
[1748861107912,0.99664642,104400.0,104390.0,1.91954061]
[1748861108211,0.99764642,104400.0,104390.0,1.91834061]
[1748861108413,1.03174642,104400.0,104390.0,1.95304061]
[1748861108805,1.03274642,104400.0,104390.0,1.95304061]
[1748861111613,1.03274642,104400.0,104390.0,1.50856061]
[1748861111808,1.03274642,104400.0,104390.0,0.38774061]
[1748861112013,1.03274642,104400.0,104390.0,0.83218061]
[1748861112514,1.03274642,104400.0,104390.0,0.19625311]
[1748861112816,1.03274642,104400.0,104390.0,0.83219361]
[1748861115319,1.03274642,104400.0,104390.0,0.86867789]
[1748861116013,1.39354642,104400.0,104390.0,0.86867789]
[1748861118609,1.39354642,104400.0,104390.0,0.85747789]
[1748861119719,1.03274642,104400.0,104390.0,0.85747789]
[1748861124016,1.09250188,104400.0,104390.0,0.85747789]
[1748861126506,0.88403875,104400.0,104390.0,0.85747789]
[1748861127821,0.73738222,104400.0,104390.0,0.85747789]
[1748861128113,0.88403875,104400.0,104390.0,0.85747789]
[1748861128312,1.09217209,104400.0,104390.0,0.85747789]
[1748861131729,1.09217209,104400.0,104390.0,0.85715789]
[1748861132030,1.09217209,104400.0,104390.0,0.82075789]
[1748861133430,1.0923949,104400.0,104390.0,0.82075789]
[1748861134225,0.88426156,104400.0,104390.0,0.82075789]
[1748861134726,1.03302628,104400.0,104390.0,0.82075789]
[1748861135330,0.67222628,104400.0,104390.0,0.82075789]
[1748861135521,1.03302628,104400.0,104390.0,0.82075789]
[1748861136522,0.88426156,104400.0,104390.0,0.82075789]
[1748861138138,0.88426156,104400.0,104390.0,0.82055789]
[1748861138638,0.88426156,104400.0,104390.0,0.82047789]
[1748861138933,1.0923949,104400.0,104390.0,0.82047789]
[1748861139531,1.0923949,104400.0,104390.0,0.82043789]
[1748861139733,1.23927424,104400.0,104390.0,0.75073789]
[1748861140125,1.23927424,104400.0,104390.0,0.11507739]
[1748861140331,1.23927424,104400.0,104390.0,0.75073789]
[1748861140534,1.23927424,104400.0,104390.0,0.55024428]
[1748861140535,1.0311409,104400.0,104390.0,0.55024428]
[1748861140732,1.0311409,104400.0,104390.0,0.55044428]
[1748861141032,1.23927424,104400.0,104390.0,0.75116272]
[1748861141631,1.23927424,104400.0,104390.0,0.76585011]
[1748861141831,1.60007424,104400.0,104390.0,0.76585011]
[1748861146547,1.60007424,104400.0,104390.0,0.56509167]
[1748861147040,1.60007424,104400.0,104390.0,0.75659217]
[1748861147645,1.60007424,104400.0,104390.0,0.56509167]
[1748861147851,1.60007424,104400.0,104390.0,0.75659217]
[1748861148241,1.60007424,104400.0,104390.0,0.56509167]
[1748861153551,1.3919409,104400.0,104390.0,0.55385997]
[1748861153746,1.60019998,104400.0,104390.0,0.55385997]
[1748861154341,1.60019998,104400.0,104390.0,0.74536047]
[1748861154653,1.60019998,104400.0,104390.0,0.55385997]
[1748861155445,1.60019998,104400.0,104390.0,0.77846047]
[1748861157853,1.60019998,104400.0,104390.0,0.23948789]
[1748861158047,1.60019998,104400.0,104390.0,0.78824789]
[1748861159352,1.60019998,104400.0,104390.0,0.23948789]
[1748861159560,1.60019998,104400.0,104390.0,0.78824789]
[1748861160150,1.45332064,104400.0,104390.0,0.78824789]
[1748861161747,1.45332064,104400.0,104390.0,0.01488739]
[1748861161954,1.60019998,104400.0,104390.0,0.56360739]
[1748861162158,1.60019998,104400.0,104390.0,0.56340739]
[1748861162359,1.60019998,104400.0,104390.0,0.56360739]
[1748861162952,1.60019998,104400.0,104390.0,0.01488739]
[1748861163153,1.60019998,104400.0,104390.0,0.56360739]
[1748861164354,1.3919409,104400.0,104390.0,0.56360739]
[1748861165671,1.3919409,104400.0,104390.0,0.56356739]
[1748861167872,1.3919409,104400.0,104390.0,0.75506789]
[1748861168368,1.3919409,104400.0,104390.0,0.56356739]
[1748861168560,1.24506156,104400.0,104390.0,0.75506789]
[1748861168762,1.24506156,104400.0,104390.0,0.79066789]
[1748861169165,1.24506156,104400.0,104390.0,0.82506789]
[1748861169469,1.24506156,104400.0,104390.0,0.8103805]
[1748861170055,1.3919409,104400.0,104390.0,0.8103805]
[1748861174372,1.60029654,104400.0,104390.0,0.8103805]
[1748861176972,1.4534172,104400.0,104390.0,0.8103805]
[1748861183878,1.24506156,104400.0,104390.0,0.8103805]
[1748861185179,1.4535634,104400.0,104390.0,0.8103805]
[1748861187983,1.60044274,104400.0,104390.0,0.8103805]
[1748861190388,1.60044274,104400.0,104390.0,0.2617005]
[1748861190685,1.60044274,104400.0,104390.0,0.8099405]
[1748861190879,1.7493703,104400.0,104390.0,0.8099405]
[1748861191083,1.54086846,104400.0,104390.0,0.8099405]
[1748861193088,1.54086846,104400.0,104390.0,0.8097405]
[1748861194082,1.54086846,104400.0,104390.0,0.8097005]
[1748861195689,1.3919409,104400.0,104390.0,0.8097005]
[1748861195980,1.60044274,104400.0,104390.0,0.07]
[1748861196290,0.1915006,104390.0,104380.0,0.39151481]
[1748861196479,0.95348954,104390.0,104380.0,0.91501661]
[1748861197483,0.95348954,104390.0,104380.0,0.36685661]
[1748861197682,0.95448954,104390.0,104380.0,0.91501661]
[1748861198387,0.95448954,104390.0,104380.0,0.91601661]
[1748861198588,0.95648954,104390.0,104380.0,0.91601661]
[1748861200794,0.80767994,104390.0,104380.0,0.91601661]
[1748861201595,0.95648926,104390.0,104380.0,0.91601661]
[1748861204389,0.95648926,104390.0,104380.0,1.06289595]
[1748861205994,0.70410992,104390.0,104380.0,1.06289595]
[1748861206198,0.85098926,104390.0,104380.0,1.06289595]
[1748861206895,0.92258926,104390.0,104380.0,1.06289595]
[1748861207491,0.95898926,104390.0,104380.0,1.06289595]
[1748861209294,0.95898926,104390.0,104380.0,0.51473595]
[1748861209493,0.95898926,104390.0,104380.0,1.06257595]
[1748861209894,0.95898926,104390.0,104380.0,0.51473595]
[1748861210094,0.95898926,104390.0,104380.0,1.06253595]
[1748861210296,0.95898926,104390.0,104380.0,0.51473595]
[1748861210507,0.95898926,104390.0,104380.0,1.06253595]
[1748861210711,0.51260932,104390.0,104380.0,1.20941529]
[1748861211004,0.15180932,104390.0,104380.0,1.66601529]
[1748861211200,0.003,104390.0,104380.0,1.66601529]
[1748861212204,0.1945005,104390.0,104380.0,1.66601529]
[1748861212707,0.003,104390.0,104380.0,1.65477529]
[1748861214407,0.15180932,104390.0,104380.0,1.65477529]
[1748861215906,0.15180932,104390.0,104380.0,1.66602529]
[1748861217099,0.14980932,104390.0,104380.0,1.66602529]
[1748861217496,0.001,104390.0,104380.0,1.66602529]
[1748861217896,0.97918725,104400.0,104390.0,0.1915004]
[1748861218103,1.18575911,104400.0,104390.0,0.44467974]
[1748861219011,1.18675911,104400.0,104390.0,0.44567974]
[1748861219513,0.97825727,104400.0,104390.0,0.44567974]
[1748861220606,0.93038547,104400.0,104390.0,0.44567974]
[1748861220809,0.78350613,104400.0,104390.0,0.44567974]
[1748861221107,0.20850184,104410.0,104400.0,0.1914821]
[1748861221308,0.15905475,104410.0,104400.0,1.34832012]
[1748861221509,0.002,104430.0,104420.0,0.1914455]
[1748861221811,0.19229463,104430.0,104420.0,1.10244418]
[1748861222016,0.22889463,104430.0,104420.0,1.13824418]
[1748861222313,0.26339463,104430.0,104420.0,1.13824418]
[1748861222520,0.26739463,104430.0,104420.0,1.13824418]
[1748861224115,0.27139463,104430.0,104420.0,1.13924418]
[1748861224404,0.27039463,104430.0,104420.0,1.13924418]
[1748861224614,0.04446753,104430.0,104420.0,1.13924418]
[1748861225720,0.23589463,104430.0,104420.0,1.13924418]
[1748861227013,0.27069463,104430.0,104420.0,1.13924418]
[1748861227315,0.27069463,104430.0,104420.0,0.46258074]
[1748861227504,0.77837397,104430.0,104420.0,0.1232559]
[1748861227815,0.92525331,104430.0,104420.0,0.7579814]
[1748861228115,0.77837397,104430.0,104420.0,0.7577814]
[1748861228312,0.77837397,104430.0,104420.0,0.7579814]
[1748861229710,0.77837397,104430.0,104420.0,0.90486074]
[1748861230513,0.77837397,104430.0,104420.0,0.7579814]
[1748861231309,0.77829866,104430.0,104420.0,0.7579814]
[1748861232220,0.63149463,104430.0,104420.0,0.7579814]
[1748861234422,0.99229463,104430.0,104420.0,0.7579814]
[1748861237621,1.13909866,104430.0,104420.0,0.7579814]
[1748861239515,1.28727082,104430.0,104420.0,0.7579814]
[1748861239717,1.13909866,104430.0,104420.0,0.7579814]
[1748861239904,0.99229463,104430.0,104420.0,0.7579814]
[1748861240711,0.99229463,104430.0,104420.0,0.2105014]
[1748861241011,1.13909866,104430.0,104420.0,0.7573814]
[1748861241414,0.99229463,104430.0,104420.0,0.7575814]
[1748861241618,1.13909866,104430.0,104420.0,0.7575814]
[1748861241822,1.13909866,104430.0,104420.0,0.3147014]
[1748861242014,1.13909866,104430.0,104420.0,0.7575814]
[1748861248624,1.17449866,104430.0,104420.0,0.7575814]
[1748861249625,1.32267082,104430.0,104420.0,0.7575814]
[1748861250620,1.17449866,104430.0,104420.0,0.7575814]
[1748861252324,1.17449866,104430.0,104420.0,0.7688814]
[1748861253527,1.38192788,104430.0,104420.0,0.7688814]
[1748861257629,1.38192788,104430.0,104420.0,0.7500255]
[1748861257932,1.17449866,104430.0,104420.0,0.7500255]
[1748861259832,1.17449866,104430.0,104420.0,0.7856255]
[1748861260531,1.17449866,104430.0,104420.0,0.8227255]
[1748861263128,0.45289866,104430.0,104420.0,0.8227255]
[1748861263331,1.17449866,104430.0,104420.0,0.8227255]
[1748861263531,1.38306479,104430.0,104420.0,0.8227255]
[1748861266828,1.5320475,104430.0,104420.0,0.8227255]
[1748861267029,1.32348137,104430.0,104420.0,0.8227255]
[1748861267227,1.3234759,104430.0,104420.0,0.8227255]
[1748861268634,1.17667734,104430.0,104420.0,0.8227255]
[1748861268838,1.3234759,104430.0,104420.0,0.8227255]
[1748861272239,1.17449319,104430.0,104420.0,0.8227255]
[1748861272435,1.38305932,104430.0,104420.0,0.8227255]
[1748861273240,1.38305932,104430.0,104420.0,0.8225255]
[1748861273634,1.17449319,104430.0,104420.0,0.8225255]
[1748861275237,1.02769463,104430.0,104420.0,0.8225255]
[1748861275443,1.32349529,104430.0,104420.0,0.96932406]
[1748861275939,1.32349529,104430.0,104420.0,1.00572406]
[1748861279240,1.32349529,104430.0,104420.0,0.8225255]
[1748861279441,1.47029385,104430.0,104420.0,0.7492655]
[1748861279744,1.47029385,104430.0,104420.0,0.7494655]
[1748861279745,1.32347195,104430.0,104420.0,0.7494655]
[1748861279940,1.47027051,104430.0,104420.0,0.11554]
[1748861280249,0.1914455,104420.0,104410.0,1.08698371]
[1748861280446,1.06224118,104420.0,104410.0,0.10418371]
[1748861280738,1.27080731,104420.0,104410.0,0.54686371]
[1748861280945,0.91544262,104420.0,104410.0,0.54686371]
[1748861281134,0.6218455,104420.0,104410.0,0.56122371]
[1748861281335,0.76872501,104420.0,104410.0,0.11874371]
[1748861281545,0.97801621,104420.0,104410.0,0.56122371]
[1748861281740,0.98736484,104420.0,104410.0,0.56122371]
[1748861282146,0.99036484,104420.0,104410.0,0.56222371]
[1748861282347,0.99036484,104420.0,104410.0,0.01570371]
[1748861282541,0.99036484,104420.0,104410.0,0.56206371]
[1748861282845,0.98101621,104420.0,104410.0,0.56206371]
[1748861283243,0.98101621,104420.0,104410.0,0.56226371]
[1748861283543,0.77272501,104420.0,104410.0,0.56226371]
[1748861284442,0.7821967,104420.0,104410.0,0.56226371]
[1748861284646,0.7821967,104420.0,104410.0,0.11978371]
[1748861284948,0.7821967,104420.0,104410.0,0.56226371]
[1748861285243,0.8821967,104420.0,104410.0,0.56226371]
[1748861285441,0.8821967,104420.0,104410.0,0.11978371]
[1748861285642,0.1914822,104400.0,104390.0,0.2872377]
[1748861285836,1.20851608,104400.0,104390.0,0.83266523]
[1748861286039,1.13323657,104400.0,104390.0,0.83266523]
[1748861286243,1.13323657,104400.0,104390.0,0.90216523]
[1748861286942,1.13323657,104400.0,104390.0,0.90316523]
[1748861287749,1.13323657,104400.0,104390.0,0.90516523]
[1748861288140,1.13323657,104400.0,104390.0,0.46268523]
[1748861288338,1.13323657,104400.0,104390.0,0.90512523]
[1748861289048,1.28011608,104400.0,104390.0,0.90512523]
[1748861289446,1.13323657,104400.0,104390.0,0.90512523]
[1748861289653,1.28011608,104400.0,104390.0,0.90512523]
[1748861289853,1.13323657,104400.0,104390.0,0.90512523]
[1748861290148,1.13323657,104400.0,104390.0,0.94132523]
[1748861290454,0.14855437,104400.0,104390.0,1.44900474]
[1748861290750,0.50949808,104410.0,104400.0,0.1914822]
[1748861290950,0.36094371,104410.0,104400.0,0.40566171]
[1748861291149,0.00014371,104410.0,104400.0,1.00912122]
[1748861291554,0.00014371,104410.0,104400.0,0.91334122]
[1748861291756,0.00014371,104410.0,104400.0,0.91434122]
[1748861292259,0.00014371,104410.0,104400.0,1.26012122]
[1748861292953,0.00014371,104410.0,104400.0,1.70256122]
[1748861293148,0.00114371,104410.0,104400.0,1.45256122]
[1748861293956,0.00114371,104410.0,104400.0,1.30568171]
[1748861295454,0.00114371,104410.0,104400.0,1.45256122]
[1748861296561,0.36166753,104430.0,104420.0,0.1914455]
[1748861296757,0.36053506,104430.0,104420.0,0.88480501]
[1748861297064,0.55196226,104430.0,104420.0,0.95600501]
[1748861297256,0.36053506,104430.0,104420.0,0.95600501]
[1748861297651,0.36453506,104430.0,104420.0,0.95700501]
[1748861297961,0.36753506,104430.0,104420.0,0.95700501]
[1748861299360,0.36453506,104430.0,104420.0,2.04268501]
[1748861299955,0.36153506,104430.0,104420.0,2.04368501]
[1748861301665,0.54053902,104440.0,104430.0,0.1914271]
[1748861301849,0.36094371,104440.0,104430.0,0.58508612]
[1748861302659,0.36394371,104440.0,104430.0,0.58608612]
[1748861303259,0.36494371,104440.0,104430.0,0.58608612]
[1748861303565,0.36494371,104440.0,104430.0,0.43920661]
[1748861305667,0.55635251,104440.0,104430.0,0.43920661]
[1748861305969,0.59115251,104440.0,104430.0,0.88144661]
[1748861306170,0.62695251,104440.0,104430.0,0.88144661]
[1748861307464,0.62695251,104440.0,104430.0,0.2923271]
[1748861307657,0.77383202,104440.0,104430.0,0.2963071]
[1748861307858,0.77383202,104440.0,104430.0,0.7385071]
[1748861308161,0.77383202,104440.0,104430.0,0.7387071]
[1748861308858,0.62695251,104440.0,104430.0,0.7387071]
[1748861309858,0.00414371,104440.0,104430.0,1.03246612]
[1748861310063,0.143524,104470.0,104460.0,0.1913721]
[1748861310262,0.99063314,104480.0,104470.0,0.1913538]
[1748861310464,0.84254171,104480.0,104470.0,0.1913538]
[1748861311063,0.84254171,104480.0,104470.0,0.26813514]
[1748861311467,0.84954171,104480.0,104470.0,0.26913514]
[1748861312072,0.84954171,104480.0,104470.0,0.1923538]
[1748861312371,0.85654171,104480.0,104470.0,0.1933538]
[1748861313262,0.95964171,104480.0,104470.0,0.1933538]
[1748861314059,0.95964171,104480.0,104470.0,0.20289878]
[1748861314366,0.95964171,104480.0,104470.0,0.01154498]
[1748861314561,1.05964171,104480.0,104470.0,0.54816]
[1748861314762,1.05964171,104480.0,104470.0,0.10608]
[1748861315070,1.15535771,104480.0,104470.0,0.10588]
[1748861315273,1.15535771,104480.0,104470.0,0.10608]
[1748861315659,1.15535771,104480.0,104470.0,0.2974338]
[1748861315660,0.95964171,104480.0,104470.0,0.2974338]
[1748861320374,0.95964171,104480.0,104470.0,0.3114338]
[1748861322579,0.95964171,104480.0,104470.0,0.12008]
[1748861322777,0.95964171,104480.0,104470.0,0.56208]
[1748861322975,1.05964171,104480.0,104470.0,0.0162]
[1748861323181,0.1913538,104470.0,104460.0,0.10402371]
[1748861323485,0.76683331,104470.0,104460.0,0.54602371]
[1748861323775,0.76683331,104470.0,104460.0,0.54622371]
[1748861323973,0.97480943,104470.0,104460.0,0.00034371]
[1748861324174,0.97480943,104470.0,104460.0,0.54618371]
[1748861324476,0.97980943,104470.0,104460.0,0.54718371]
[1748861324675,0.97980943,104470.0,104460.0,0.00134371]
[1748861324978,0.98580943,104470.0,104460.0,0.00234371]
[1748861325478,0.98580943,104470.0,104460.0,0.54818371]
[1748861325874,0.98580943,104470.0,104460.0,0.00234371]
[1748861326073,0.98580943,104470.0,104460.0,0.54818371]
[1748861326781,0.98580943,104470.0,104460.0,0.73955591]
[1748861326978,0.98580943,104470.0,104460.0,0.00234371]
[1748861327576,0.98580943,104470.0,104460.0,0.29759591]
[1748861327779,0.98580943,104470.0,104460.0,0.19371591]
[1748861328172,0.98580943,104470.0,104460.0,0.73955591]
[1748861328371,0.98580943,104470.0,104460.0,0.19371591]
[1748861328572,0.98580943,104470.0,104460.0,0.73955591]
[1748861329079,0.77783331,104470.0,104460.0,0.77105591]
[1748861329283,0.77783331,104470.0,104460.0,0.32909591]
[1748861329485,0.77783331,104470.0,104460.0,0.73955591]
[1748861330792,0.2023538,104470.0,104460.0,1.27843542]
[1748861331085,0.2023538,104470.0,104460.0,1.30993542]
[1748861331279,0.2351538,104470.0,104460.0,1.16305591]
[1748861332981,0.2251538,104470.0,104460.0,1.16105591]
[1748861333181,0.2271538,104470.0,104460.0,1.16105591]
[1748861333769,0.73483331,104470.0,104460.0,0.35817591]
[1748861333969,0.76693331,104470.0,104460.0,0.54602371]
[1748861334172,0.97490943,104470.0,104460.0,0.73719591]
[1748861334383,0.97490943,104470.0,104460.0,0.73739591]
[1748861335186,0.98848925,104470.0,104460.0,0.73739591]
[1748861336582,0.98848925,104470.0,104460.0,0.00034371]
[1748861336877,0.98848925,104470.0,104460.0,0.73735591]
[1748861338277,0.98848925,104470.0,104460.0,0.79855591]
[1748861343585,0.98848925,104470.0,104460.0,0.54574371]
[1748861343777,0.98848925,104470.0,104460.0,0.00014371]
[1748861343778,0.78051313,104470.0,104460.0,0.00014371]
[1748861343978,0.78051313,104470.0,104460.0,0.10410371]
[1748861344179,0.1913905,104450.0,104440.0,0.27224817]
[1748861344382,0.71264983,104450.0,104440.0,0.19888898]
[1748861344580,0.77624983,104450.0,104440.0,0.83213788]
[1748861344885,0.77624983,104450.0,104440.0,0.83233788]
[1748861345084,0.77624983,104450.0,104440.0,0.16818898]
[1748861345385,0.77624983,104450.0,104440.0,0.54752898]
[1748861345386,0.98422595,104450.0,104440.0,0.54752898]
[1748861345585,0.98422595,104450.0,104440.0,0.00172898]
[1748861345773,0.98422595,104450.0,104440.0,0.54932898]
[1748861345978,0.98422595,104450.0,104440.0,0.10768898]
[1748861346185,0.98422595,104450.0,104440.0,0.54952898]
[1748861346789,0.98422595,104450.0,104440.0,0.55152898]
[1748861346987,0.82376662,104450.0,104440.0,0.55152898]
[1748861347183,0.82376662,104450.0,104440.0,0.74293788]
[1748861347184,0.98422595,104450.0,104440.0,0.74293788]
[1748861347379,0.39936662,104450.0,104440.0,0.77533788]
[1748861347586,0.80725803,104460.0,104440.0,0.22898831]
[1748861347793,0.39949203,104460.0,104450.0,0.99544983]
[1748861347981,0.39949203,104460.0,104450.0,1.35624983]
[1748861347982,0.20774234,104460.0,104450.0,1.35624983]
[1748861348294,0.1913722,104460.0,104450.0,1.35624983]
[1748861350493,0.1913722,104460.0,104450.0,1.1957905]
[1748861352597,0.1913722,104460.0,104450.0,0.8349505]
[1748861353089,0.1913722,104460.0,104450.0,1.1957505]
[1748861353301,0.1913722,104460.0,104450.0,1.1959505]
[1748861355889,0.19150001,104470.0,104460.0,0.1913722]
[1748861356088,0.19150001,104470.0,104460.0,0.2573722]
[1748861356881,0.00014371,104470.0,104460.0,0.2573722]
[1748861357198,0.19449761,104470.0,104460.0,0.2573722]
[1748861358897,0.00314371,104470.0,104460.0,0.2573722]
[1748861359098,0.19449761,104470.0,104460.0,0.2573722]
[1748861360002,0.55529761,104470.0,104460.0,0.066]
[1748861360188,0.55529761,104470.0,104450.0,0.47213401]
[1748861360189,0.1913722,104460.0,104450.0,0.47213401]
[1748861360387,0.80823153,104460.0,104450.0,0.97749401]
[1748861360594,0.80823153,104460.0,104450.0,0.60938371]
[1748861360897,0.80823153,104460.0,104450.0,0.73717431]
[1748861361197,0.80823153,104460.0,104450.0,0.73697431]
[1748861361397,0.80823153,104460.0,104450.0,0.73717431]
[1748861361595,0.80823153,104460.0,104450.0,0.00034371]
[1748861361902,0.80823153,104460.0,104450.0,0.54578371]
[1748861362482,0.80823153,104460.0,104450.0,0.54558371]
[1748861362682,0.80823153,104460.0,104450.0,0.10402371]
[1748861362904,0.90823153,104460.0,104450.0,0.54574371]
[1748861363087,1.11686065,104460.0,104450.0,0.54554371]
[1748861363400,1.11686065,104460.0,104450.0,0.54574371]
[1748861363898,1.01686065,104460.0,104450.0,0.54574371]
[1748861364392,1.01686065,104460.0,104450.0,0.54578371]
[1748861364595,1.01686065,104460.0,104450.0,0.00034371]
[1748861365093,1.01686065,104460.0,104450.0,0.54578371]
[1748861365399,1.11686065,104460.0,104450.0,0.54578371]
[1748861366300,1.01686065,104460.0,104450.0,0.54578371]
[1748861366497,0.85640132,104460.0,104450.0,0.54578371]
[1748861366793,1.01686065,104460.0,104450.0,0.54578371]
[1748861366997,1.01686065,104460.0,104450.0,0.56602899]
[1748861367893,1.01686065,104460.0,104450.0,0.75741959]
[1748861368089,0.85640132,104460.0,104450.0,0.37765959]
[1748861368284,0.6477722,104460.0,104450.0,0.81941959]
[1748861368897,0.80823153,104460.0,104450.0,0.05218899]
[1748861369202,0.80823153,104460.0,104450.0,0.75741959]
[1748861369502,0.80823153,104460.0,104450.0,0.81961959]
[1748861374499,1.01686065,104460.0,104450.0,0.81961959]
[1748861374802,0.85640132,104460.0,104450.0,0.81961959]
[1748861377702,0.85640132,104460.0,104450.0,0.27417959]
[1748861378003,0.85640132,104460.0,104450.0,0.81961959]
[1748861378197,1.01686065,104460.0,104450.0,0.81961959]
[1748861378593,1.01686065,104460.0,104450.0,0.18646899]
[1748861378899,1.01686065,104460.0,104450.0,0.81965959]
[1748861379098,1.01686065,104460.0,104450.0,0.81945959]
[1748861379296,1.01686065,104460.0,104450.0,0.81965959]
[1748861379496,0.85640132,104460.0,104450.0,0.81965959]
[1748861383410,0.85640132,104460.0,104450.0,0.37785959]
[1748861383607,0.85640132,104460.0,104450.0,0.81961959]
[1748861384204,0.6477722,104460.0,104450.0,0.81961959]
[1748861384799,0.2869722,104460.0,104450.0,0.81961959]
[1748861384999,0.6477722,104460.0,104450.0,0.81961959]
[1748861385706,0.80823153,104460.0,104450.0,0.81961959]
[1748861389415,0.80823153,104460.0,104450.0,0.7992306]
[1748861390415,0.80823153,104460.0,104450.0,0.78366486]
[1748861393320,0.7944904,104460.0,104450.0,0.78366486]
[1748861393721,0.7944904,104460.0,104450.0,0.34190486]
[1748861393921,1.00335249,104460.0,104450.0,0.59223426]
[1748861394923,1.00335249,104460.0,104450.0,0.78362486]
[1748861395422,1.00335249,104460.0,104450.0,0.59223426]
[1748861396318,1.00335249,104460.0,104450.0,0.60309795]
[1748861397115,1.15007069,104460.0,104450.0,0.01106369]
[1748861397317,1.15007069,104460.0,104450.0,0.55646369]
[1748861397518,1.15007069,104460.0,104450.0,0.55626369]
[1748861397519,0.9412086,104460.0,104450.0,0.55626369]
[1748861397823,0.9412086,104460.0,104450.0,0.55646369]
[1748861399231,0.7944904,104460.0,104450.0,0.55646369]
[1748861399525,0.7944904,104460.0,104450.0,0.54523804]
[1748861399720,0.9412086,104460.0,104450.0,0.0002]
[1748861399921,0.9412086,104460.0,104450.0,0.5456]